bitfinex/quotes_ETHUSD_20240823
["timestamp","ask_amount","ask_price","bid_price","bid_amount"]
[1724452032328,3.58104,2792.5,2791.6,9.02832]
[1724452032833,3.58054,2792.9,2791.6,5.4462]
[1724452033087,3.58027,2793.1,2791.6,5.4462]
[1724452033374,0.56131309,2793.2,2791.7,3.582]
[1724452033577,0.56131309,2793.2,2791.6,5.4462]
[1724452033578,3.58104,2792.5,2791.6,9.02837]
[1724452033761,3.58092,2792.6,2791.7,0.902837]
[1724452033963,3.58064,2792.8,2791.9,3.58169]
[1724452034143,0.56131309,2793.2,2791.9,3.58169]
[1724452034144,3.58078,2792.7,2791.9,3.58169]
[1724452034332,3.58078,2792.7,2791.7,4.484867]
[1724452034333,3.58038,2793.0,2792.0,3.58153]
[1724452034566,3.58038,2793.0,2792.1,0.358153]
[1724452034968,3.58013,2793.2,2792.1,0.358153]
[1724452034969,3.58013,2793.2,2792.3,3.58118]
[1724452035119,3.58025,2793.1,2792.4,0.55]
[1724452035290,3.58039,2793.0,2792.2,0.55]
[1724452035621,3.58076,2792.7,2792.1,0.358153]
[1724452035787,3.58103,2792.5,2791.7,0.902837]
[1724452035974,3.58076,2792.7,2791.7,0.902837]
[1724452035975,3.58132,2792.3,2791.7,0.902837]
[1724452036173,3.58132,2792.3,2791.4,3.58238]
[1724452036581,3.58142,2792.2,2791.4,3.58238]
[1724452036775,3.58132,2792.3,2791.4,3.58238]
[1724452036977,3.58105,2792.5,2791.4,3.58238]
[1724452037292,3.58085,2792.7,2791.8,3.58182]
[1724452037493,3.58063,2792.8,2792.0,3.58164]
[1724452037681,3.58079,2792.7,2791.9,0.358182]
[1724452037882,3.58079,2792.7,2791.9,3.939962]
[1724452038082,3.5809,2792.6,2791.9,0.358182]
[1724452038796,3.58103,2792.5,2791.9,0.358182]
[1724452038982,3.0,2793.2,2791.4,3.58239]
[1724452039319,3.58119,2792.4,2791.5,4.13221]
[1724452039483,3.581,2792.6,2791.6,3.58217]
[1724452039680,3.581,2792.6,2791.8,3.5819]
[1724452039881,7.1614,2792.8,2791.9,4.20340225]
[1724452040187,3.58052,2792.9,2792.1,3.58144]
[1724452040376,3.58041,2793.0,2792.2,0.55]
[1724452040820,3.0,2793.4,2792.0,4.36018023]
[1724452040821,3.58103,2792.5,2792.0,0.77853023]
[1724452041024,3.58103,2792.5,2791.6,3.58207]
[1724452041228,3.58129,2792.3,2791.7,0.55]
[1724452041381,3.58082,2792.7,2791.5,0.55]
[1724452041579,3.58082,2792.7,2791.8,3.58182]
[1724452041781,3.58082,2792.7,2791.9,0.55]
[1724452042086,3.58112,2792.5,2791.9,0.55]
[1724452042283,7.16167,2792.7,2791.7,0.55]
[1724452042631,3.58108,2792.5,2791.8,0.413207]
[1724452042852,3.58116,2792.4,2791.9,0.55]
[1724452043128,7.16138,2792.8,2791.9,4.13174]
[1724452043429,3.0,2793.4,2792.1,3.58152]
[1724452043430,3.58053,2792.9,2792.1,3.58152]
[1724452043628,7.16014,2793.3,2792.4,3.58104]
[1724452043854,3.58003,2793.3,2792.5,0.07160836]
[1724452044126,3.57975,2793.5,2792.6,3.58085]
[1724452044310,3.57975,2793.5,2792.7,0.55]
[1724452044776,6.5888,2794.1,2792.5,0.55]
[1724452044777,3.58021,2793.2,2792.5,0.55]
[1724452044981,3.58021,2793.2,2792.6,0.413114]
[1724452045222,3.58021,2793.2,2792.5,0.55]
[1724452045433,3.57987,2793.4,2792.5,0.55]
[1724452045582,3.58002,2793.3,2792.5,0.55]
[1724452046090,3.58036,2793.1,2792.5,0.55]
[1724452046438,3.57988,2793.4,2792.3,0.55]
[1724452046589,9.5888,2794.1,2792.3,0.55]
[1724452046590,13.16784,2794.1,2792.3,0.55]
[1724452046934,3.58036,2793.1,2792.4,0.4489502]
[1724452047122,3.58,2793.3,2792.5,0.55]
[1724452047453,3.58034,2793.1,2792.5,0.55]
[1724452047657,3.58,2793.3,2792.5,0.55]
[1724452048222,19.73201939,2794.1,2792.2,0.358152]
[1724452048223,3.5805,2793.0,2792.2,0.358152]
[1724452048738,3.5806,2792.9,2792.2,0.358152]
[1724452049054,3.58071,2792.8,2792.2,0.358152]
[1724452049198,3.58071,2792.8,2791.9,6.6038]
[1724452049199,3.58071,2792.8,2792.0,3.58159]
[1724452049513,3.581,2792.6,2791.8,3.995067]
[1724452049716,3.58043,2793.0,2791.9,3.58173]
[1724452049915,3.58077,2792.7,2791.9,3.58173]
[1724452050157,3.58077,2792.7,2792.0,0.3994937]
[1724452050773,3.58072,2792.8,2792.0,0.3994937]
[1724452050978,6.5888,2793.4,2792.1,0.55]
[1724452051175,6.5888,2793.4,2792.5,3.581]
[1724452051176,3.58007,2793.3,2792.5,3.581]
[1724452051382,3.58007,2793.3,2792.6,0.55]
[1724452051595,3.58026,2793.1,2792.7,0.4131]
[1724452051797,3.58026,2793.1,2792.6,0.55]
[1724452051948,3.58008,2793.3,2792.5,3.58102]
[1724452052152,3.58017,2793.2,2792.6,0.55]
[1724452052395,3.58017,2793.2,2792.4,0.55]
[1724452052690,3.58058,2792.9,2792.4,0.55]
[1724452052898,3.58098,2792.6,2791.8,0.413207]
[1724452053050,3.58063,2792.8,2791.9,1.6098947]
[1724452054182,3.58063,2792.8,2791.9,5.1915847]
[1724452054499,3.58063,2792.8,2792.0,3.58165]
[1724452054698,3.58063,2792.8,2792.1,0.55]
[1724452054941,7.16137,2792.8,2792.1,0.55]
[1724452055230,3.58022,2793.2,2792.3,3.58118]
[1724452055523,3.58033,2793.1,2792.4,0.55]
[1724452055736,6.5888,2793.8,2792.4,0.55]
[1724452055935,3.57968,2793.6,2792.6,6.7588]
[1724452056221,3.57969,2793.6,2792.7,5.164647]
[1724452056423,7.15941,2793.6,2792.7,5.164617]
[1724452056611,3.57969,2793.6,2792.7,5.164617]
[1724452056932,3.57997,2793.4,2792.8,1.1923417]
[1724452057134,3.58019,2793.2,2792.7,0.55]
[1724452057429,3.58046,2793.0,2792.1,10.3403]
[1724452057629,3.58046,2793.0,2792.2,4.1314]
[1724452057833,3.58046,2793.0,2792.2,0.55]
[1724452058043,3.58042,2793.0,2792.2,0.55]
[1724452058186,3.58042,2793.0,2792.1,3.58141]
[1724452058380,3.58042,2793.0,2792.2,0.963141]
[1724452058816,3.58065,2792.8,2792.2,0.413141]
[1724452058984,3.58065,2792.8,2791.9,11.2233547]
[1724452058985,3.58065,2792.8,2791.9,7.6416247]
[1724452059313,3.58042,2793.0,2791.9,4.0598947]
[1724452059734,3.58078,2792.7,2791.9,7.6415847]
[1724452060065,3.58078,2792.7,2792.0,0.55]
[1724452060178,3.58063,2792.8,2792.0,4.13163]
[1724452060385,3.58041,2793.0,2792.0,4.13163]
[1724452060386,3.58041,2793.0,2792.2,3.58139]
[1724452060729,3.58052,2792.9,2792.3,0.55]
[1724452060934,3.58065,2792.8,2792.2,0.55]
[1724452061723,3.58041,2793.0,2792.2,4.13138]
[1724452062225,3.58041,2793.0,2792.2,0.55]
[1724452062430,3.58029,2793.1,2792.3,3.58121]
[1724452062638,3.58058,2792.9,2792.4,0.963121]
[1724452062932,6.3205,2793.4,2791.9,1.0598947]
[1724452063133,3.58083,2792.7,2791.4,6.7588]
[1724452063298,3.58083,2792.7,2791.8,3.5818]
[1724452063715,3.58045,2793.0,2792.2,3.58132]
[1724452063886,3.58045,2793.0,2792.2,7.16265]
[1724452064083,3.58006,2793.3,2792.3,0.716265]
[1724452064288,3.58021,2793.2,2792.4,3.65265973]
[1724452064584,3.58026,2793.1,2792.4,4.13105]
[1724452065513,7.16061,2793.1,2792.4,0.55]
[1724452065719,3.58003,2793.3,2792.4,3.58111]
[1724452065951,3.58003,2793.3,2792.5,0.963111]
[1724452066148,3.57976,2793.5,2792.8,3.58063]
[1724452066364,3.57976,2793.5,2792.9,0.55]
[1724452066580,3.58017,2793.2,2792.9,0.55]
[1724452066860,3.58017,2793.2,2792.5,6.994051]
[1724452067015,3.58017,2793.2,2792.6,1.6075111]
[1724452067216,3.57987,2793.4,2792.6,5.1883911]
[1724452067860,3.57967,2793.6,2792.6,5.1883911]
[1724452068164,3.57967,2793.6,2792.8,3.58061]
[1724452068321,3.57982,2793.5,2792.9,0.55]
[1724452068523,3.57964,2793.6,2792.9,0.55]
[1724452068717,3.58007,2793.3,2792.7,0.55]
[1724452069022,3.57995,2793.4,2792.7,1.31322648]
[1724452069023,3.5802,2793.2,2792.7,1.31322648]
[1724452069220,3.58028,2793.1,2792.7,0.55]
[1724452069749,3.58028,2793.1,2792.5,0.55]
[1724452069950,3.58051,2792.9,2792.4,0.55]
[1724452070275,3.58051,2792.9,2792.3,0.55]
[1724452070558,3.58028,2793.1,2792.3,2.41717907]
[1724452070765,3.58028,2793.1,2792.4,4.55536426]
[1724452070918,3.58028,2793.1,2792.5,0.55]
[1724452071973,3.5804,2793.0,2792.5,0.55]
[1724452072140,3.58024,2793.2,2792.5,0.55]
[1724452072322,3.58027,2793.1,2792.5,0.55]
[1724452072521,3.58027,2793.1,2792.6,0.51054243]
[1724452072722,3.58027,2793.1,2792.5,0.55]
[1724452073252,3.58047,2793.0,2792.5,0.55]
[1724452073623,3.58027,2793.1,2792.5,0.55]
[1724452074323,3.58039,2793.0,2792.5,0.55]
[1724452074519,3.57983,2793.5,2792.5,0.55]
[1724452075022,3.57983,2793.5,2792.6,4.27804486]
[1724452075219,3.57952,2793.7,2792.7,0.55]
[1724452075220,4.83972832,2793.7,2792.7,0.55]
[1724452075469,3.58016,2793.2,2792.5,0.55]
[1724452075672,3.58002,2793.3,2792.5,0.55]
[1724452075853,3.58014,2793.2,2792.5,0.55]
[1724452076394,3.58028,2793.1,2792.5,0.55]
[1724452076778,3.58067,2792.8,2792.2,2.19951461]
[1724452077091,3.58038,2793.0,2792.0,5.44915842]
[1724452077242,4.83972832,2793.3,2792.2,0.65097647]
[1724452077243,3.58025,2793.1,2792.2,0.65097647]
[1724452077696,3.58025,2793.1,2792.1,3.58149]
[1724452078191,3.58025,2793.1,2792.2,7.5045]
[1724452078356,3.57959,2793.7,2792.3,3.55]
[1724452078536,3.57986,2793.4,2792.6,3.58088]
[1724452078739,3.57986,2793.4,2792.7,0.55]
[1724452079064,3.58027,2793.1,2792.7,0.963088]
[1724452079384,3.58027,2793.1,2792.7,0.55]
[1724452079584,3.58027,2793.1,2792.3,3.0]
[1724452079810,3.58027,2793.1,2792.4,0.55]
[1724452079941,3.58027,2793.1,2792.3,0.55]
[1724452080149,3.58027,2793.1,2792.1,3.58151]
[1724452080463,4.83972832,2792.8,2791.9,0.56015486]
[1724452080802,3.58116,2792.4,2791.6,3.58217]
[1724452081111,3.58128,2792.3,2791.5,3.58225]
[1724452081251,7.16189,2792.6,2791.5,4.14251103]
[1724452081452,10.75567,2792.8,2791.9,3.58174]
[1724452081656,3.58067,2792.8,2792.0,4.01141725]
[1724452081852,3.58067,2792.8,2792.1,3.58151]
[1724452082091,3.58052,2792.9,2792.0,3.939794]
[1724452082275,3.58063,2792.8,2792.0,3.939794]
[1724452082566,3.58063,2792.8,2792.0,0.358174]
[1724452082871,3.58081,2792.7,2792.0,0.358174]
[1724452083069,3.58054,2792.9,2792.2,3.58139]
[1724452083282,3.58054,2792.9,2792.1,0.3939934]
[1724452083487,3.58054,2792.9,2792.1,3.9755234]
[1724452084014,3.58054,2792.9,2792.1,0.3939934]
[1724452084317,3.58054,2792.9,2792.1,3.9755134]
[1724452084515,13.75502,2793.3,2792.2,1.57777531]
[1724452084685,3.58002,2793.3,2792.3,0.55]
[1724452084892,12.01472832,2793.7,2792.3,0.55]
[1724452084893,3.57994,2793.4,2792.6,3.58088]
[1724452085216,3.57978,2793.5,2792.7,0.358088]
[1724452085421,3.57978,2793.5,2792.7,23.778848]
[1724452085714,3.57988,2793.4,2792.7,20.198088]
[1724452086774,3.57999,2793.3,2792.7,20.198088]
[1724452087117,3.58027,2793.1,2792.7,19.84]
[1724452087468,3.58059,2792.9,2792.7,19.84]
[1724452087675,3.58038,2793.0,2792.2,24.92755634]
[1724452088171,3.58052,2792.9,2792.2,21.34615634]
[1724452088590,3.58038,2793.0,2792.2,21.34615634]
[1724452088888,3.58038,2793.0,2792.3,2.49276763]
[1724452089104,3.58052,2792.9,2792.3,2.49276763]
[1724452089508,3.58025,2793.1,2792.4,0.55]
[1724452089823,3.58014,2793.2,2792.4,0.55]
[1724452090005,4.83972832,2793.6,2792.5,0.30427676]
[1724452090315,3.58014,2793.2,2792.6,20.39]
[1724452090520,3.57998,2793.4,2792.6,20.39]
[1724452090680,6.58001,2793.3,2792.6,20.39]
[1724452091081,3.58013,2793.2,2792.6,20.39]
[1724452091451,3.58013,2793.2,2792.6,23.56154168]
[1724452091610,3.57998,2793.4,2792.6,27.14239168]
[1724452091611,7.15997,2793.4,2792.6,27.14239168]
[1724452091781,3.57998,2793.4,2792.6,27.14239168]
[1724452091982,3.57975,2793.5,2792.8,7.5045]
[1724452092290,3.57975,2793.5,2792.8,11.08513]
[1724452092491,4.83972832,2794.0,2792.7,19.84]
[1724452092492,8.41886832,2794.0,2792.7,19.84]
[1724452092691,3.58047,2793.0,2792.7,19.84]
[1724452092877,3.58047,2793.0,2792.5,19.84]
[1724452093277,3.58015,2793.2,2792.5,19.84]
[1724452093673,3.57992,2793.4,2792.5,19.84]
[1724452093926,3.57992,2793.4,2792.6,3.278]
[1724452093927,3.58,2793.3,2792.6,3.278]
[1724452094419,3.57992,2793.4,2792.6,6.85887]
[1724452094774,3.57992,2793.4,2792.6,3.278]
[1724452095556,7.1599,2793.4,2792.6,6.85888]
[1724452095759,3.57992,2793.4,2792.6,6.85881]
[1724452095911,3.57992,2793.4,2792.7,2.669881]
[1724452096116,3.57992,2793.4,2792.7,6.250621]
[1724452096955,3.57992,2793.4,2792.7,2.669881]
[1724452097371,3.58,2793.3,2792.7,2.669881]
[1724452097520,3.58,2793.3,2792.8,0.5947881]
[1724452098067,3.57966,2793.6,2792.8,0.5947881]
[1724452098273,3.57952,2793.7,2793.0,7.7031]
[1724452098435,3.57963,2793.6,2793.0,7.7031]
[1724452098619,3.57963,2793.6,2793.1,2.80931]
[1724452098822,3.57915,2794.0,2793.1,2.80931]
[1724452099042,3.57837,2794.6,2793.6,3.57949]
[1724452099386,4.83972832,2794.8,2793.7,19.84]
[1724452099387,3.57869,2794.4,2793.7,19.84]
[1724452099690,3.57926,2793.9,2793.3,19.84]
[1724452099888,2.8915,2795.0,2793.4,22.374]
[1724452099889,3.5785,2794.5,2793.4,22.374]
[1724452100091,3.5787,2794.4,2793.5,19.84]
[1724452100413,3.5787,2794.4,2793.6,0.55]
[1724452100577,3.57823,2794.7,2793.7,7.7031]
[1724452100768,7.8475,2795.1,2793.8,1.67531]
[1724452100984,3.57837,2794.6,2793.9,19.84]
[1724452101557,7.8475,2795.5,2793.9,19.84]
[1724452101757,3.57705,2795.6,2794.3,11.2818]
[1724452101983,3.57654,2796.0,2794.9,3.57793]
[1724452102156,3.57681,2795.8,2795.1,7.7031]
[1724452102339,3.57641,2796.1,2795.0,0.357793]
[1724452102340,3.57706,2795.6,2795.0,0.357793]
[1724452102543,4.83972832,2796.1,2794.7,7.7031]
[1724452102792,3.57682,2795.8,2794.7,11.28128]
[1724452102956,4.83972832,2796.1,2794.8,0.55]
[1724452103159,3.57783,2795.0,2794.2,7.7031]
[1724452103359,3.57746,2795.3,2794.2,7.7031]
[1724452103607,7.8475,2795.6,2794.3,0.77031]
[1724452103781,4.83972832,2795.1,2793.8,1.12531]
[1724452103945,3.57858,2794.4,2793.8,1.12531]
[1724452104296,3.57874,2794.3,2793.8,1.12531]
[1724452104589,3.57884,2794.2,2793.2,7.7031]
[1724452104798,3.5791,2794.0,2793.2,7.7031]
[1724452104996,3.0,2794.1,2793.2,7.7031]
[1724452104997,6.57901,2794.1,2793.2,7.7031]
[1724452105292,3.0,2794.1,2793.2,7.7031]
[1724452105486,3.0,2794.2,2793.2,7.7031]
[1724452105653,3.0,2794.2,2792.8,7.7031]
[1724452106041,3.57902,2794.1,2793.1,3.58024]
[1724452106241,3.0,2794.2,2793.3,3.57987]
[1724452106477,3.0,2794.2,2792.9,3.58049]
[1724452106652,3.0,2794.2,2792.8,11.28361]
[1724452106907,3.579,2794.1,2793.2,3.58009]
[1724452107083,3.57912,2794.0,2792.9,1.678361]
[1724452107263,3.57952,2793.7,2792.9,1.128361]
[1724452107458,11.42674,2793.9,2792.9,1.128361]
[1724452107693,3.57963,2793.6,2792.5,6.58091]
[1724452107989,3.57963,2793.6,2792.6,3.58089]
[1724452108206,3.57977,2793.5,2792.6,3.58089]
[1724452108546,3.57935,2793.8,2792.7,3.58074]
[1724452108872,3.57979,2793.5,2792.5,3.58099]
[1724452109077,3.57997,2793.4,2792.5,4.709399]
[1724452109249,3.57979,2793.5,2792.5,4.709399]
[1724452109445,3.57949,2793.7,2792.8,3.58058]
[1724452109689,19.26646832,2793.9,2792.8,3.58058]
[1724452109902,3.57965,2793.6,2792.6,3.58078]
[1724452110122,3.58,2793.3,2792.4,11.28422]
[1724452110331,7.8475,2793.2,2791.9,11.28487]
[1724452110535,3.58037,2793.1,2792.2,3.58139]
[1724452110680,10.8475,2793.2,2791.9,7.7031]
[1724452110879,3.58066,2792.8,2791.9,7.7031]
[1724452111133,3.58066,2792.8,2791.7,3.58202]
[1724452111134,3.58099,2792.6,2791.7,3.58202]
[1724452111431,4.83972832,2792.9,2791.5,11.28538]
[1724452111432,3.58117,2792.4,2791.8,0.358202]
[1724452111592,3.58167,2792.0,2791.0,7.7031]
[1724452112529,3.58128,2792.3,2791.2,3.58267]
[1724452112530,3.58146,2792.2,2791.2,3.58267]
[1724452113038,3.58146,2792.2,2791.0,11.28604]
[1724452113039,3.58116,2792.4,2791.3,3.65416808]
[1724452113331,6.58116,2792.4,2791.3,3.58253]
[1724452113503,6.58116,2792.4,2791.4,0.358253]
[1724452113830,3.0,2792.4,2791.4,0.358253]
[1724452114029,3.0,2792.4,2791.1,3.58278]
[1724452114398,3.0,2792.4,2791.0,7.7031]
[1724452114399,6.58116,2792.4,2791.2,0.62163941]
[1724452114587,3.58129,2792.3,2791.2,0.55]
[1724452114910,3.0,2792.4,2791.0,11.28603]
[1724452115119,3.58178,2792.0,2791.2,3.58267]
[1724452115288,3.58144,2792.2,2791.3,0.358267]
[1724452115487,3.58156,2792.1,2791.3,0.358267]
[1724452115793,3.58144,2792.2,2791.3,0.358267]
[1724452116000,3.58155,2792.1,2791.3,0.358267]
[1724452116199,3.58144,2792.2,2791.3,0.358267]
[1724452116424,3.58144,2792.2,2791.3,3.58255]
[1724452116608,3.58144,2792.2,2791.4,3.5824]
[1724452116829,3.58144,2792.2,2791.3,3.58255]
[1724452117035,3.58155,2792.1,2791.3,3.58255]
[1724452117326,3.58144,2792.2,2791.2,3.58265]
[1724452117537,3.58155,2792.1,2791.3,0.908265]
[1724452117832,3.58144,2792.2,2791.3,0.908265]
[1724452117833,3.58177,2792.0,2791.3,0.358265]
[1724452118046,3.58144,2792.2,2791.3,3.940815]
[1724452118335,3.58167,2792.0,2791.3,0.358265]
[1724452118527,3.58205,2791.7,2790.9,3.58302]
[1724452118836,3.58205,2791.7,2790.7,3.58329]
[1724452119183,3.58231,2791.5,2790.8,19.84]
[1724452119495,3.58246,2791.4,2790.8,19.84]
[1724452119704,3.58246,2791.4,2790.9,19.84]
[1724452120341,3.58257,2791.3,2790.7,19.84]
[1724452120511,3.58205,2791.7,2790.8,0.07165911]
[1724452120702,3.5824,2791.5,2790.7,21.32215898]
[1724452120914,3.58249,2791.4,2790.7,21.32215898]
[1724452121094,3.58256,2791.3,2790.7,21.32215898]
[1724452121292,3.58249,2791.4,2790.7,21.32215898]
[1724452121507,3.58257,2791.3,2790.7,21.32215898]
[1724452121733,3.58223,2791.6,2790.8,6.0736599]
[1724452121934,3.58223,2791.6,2790.9,3.58306]
[1724452122236,3.58231,2791.5,2790.8,2.4905599]
[1724452122543,3.58243,2791.4,2790.8,2.4905599]
[1724452122732,3.58278,2791.2,2790.7,19.84]
[1724452122893,3.58289,2791.1,2790.7,19.84]
[1724452123130,3.58249,2791.4,2790.7,19.84]
[1724452123428,3.58243,2791.4,2790.7,19.84]
[1724452123625,3.58278,2791.2,2790.7,19.84]
[1724452124592,3.58278,2791.2,2790.7,21.824]
[1724452125132,3.5829,2791.1,2790.7,1.984]
[1724452125330,3.5829,2791.1,2790.5,19.84]
[1724452125743,3.58294,2791.0,2790.5,19.84]
[1724452126123,3.58278,2791.2,2790.5,19.84]
[1724452126548,7.4154,2791.3,2790.5,19.84]
[1724452126695,7.4154,2791.3,2790.4,7.5716437]
[1724452126696,12.25512832,2791.3,2790.4,0.1316437]
[1724452126898,3.58333,2790.7,2790.4,0.1316437]
[1724452127098,7.16676,2790.7,2790.4,0.1316437]
[1724452127407,4.32426,2791.2,2790.4,0.1316437]
[1724452127408,3.58331,2790.8,2790.4,0.1316437]
[1724452127944,3.58314,2790.9,2790.4,0.1316437]
[1724452129019,7.16631,2790.9,2790.4,0.1316437]
[1724452129227,3.58314,2790.9,2790.4,0.1316437]
[1724452129762,3.58345,2790.6,2790.4,0.1316437]
[1724452130053,3.58328,2790.8,2790.4,0.1316437]
[1724452130811,3.58289,2791.1,2790.4,0.1316437]
[1724452131044,15.83774832,2791.3,2790.5,3.58351]
[1724452131246,6.58277,2791.2,2790.4,7.2989837]
[1724452131445,6.58242,2791.5,2790.6,3.58334]
[1724452131653,3.0,2791.5,2790.8,3.58319]
[1724452131837,3.58233,2791.5,2790.8,3.58319]
[1724452132039,3.58243,2791.4,2790.6,3.58334]
[1724452132228,3.58233,2791.5,2790.7,3.65497953]
[1724452132431,3.58233,2791.5,2790.8,0.72383195]
[1724452132632,3.0,2791.6,2790.8,0.72383195]
[1724452132943,3.0,2791.6,2790.5,8.19929837]
[1724452132944,3.58231,2791.5,2790.5,11.78282837]
[1724452133111,3.58231,2791.5,2790.7,3.58322]
[1724452133312,7.4154,2791.8,2790.5,8.19929837]
[1724452133532,3.58189,2791.9,2791.0,3.58291]
[1724452133713,3.58206,2791.7,2791.0,3.58291]
[1724452133911,3.58217,2791.6,2791.1,0.358291]
[1724452134210,3.58206,2791.7,2790.9,3.58305]
[1724452134417,3.58206,2791.7,2791.0,3.58291]
[1724452134641,3.5818,2791.9,2791.0,3.58291]
[1724452134828,3.58207,2791.7,2790.8,3.58314]
[1724452135043,3.58207,2791.7,2790.8,3.58309]
[1724452135228,3.58207,2791.7,2790.9,3.941279]
[1724452136040,3.58226,2791.6,2790.9,0.358309]
[1724452136253,3.58226,2791.6,2790.9,3.941379]
[1724452136426,3.58232,2791.5,2790.9,0.358309]
[1724452136637,3.58232,2791.5,2790.6,3.58341]
[1724452136835,3.58232,2791.5,2790.7,3.58332]
[1724452137031,10.7948,2792.2,2791.0,3.58291]
[1724452137032,3.58205,2791.7,2791.0,3.58291]
[1724452137362,10.7948,2792.2,2790.8,23.42307]
[1724452137363,3.58229,2791.6,2790.8,23.42307]
[1724452137550,10.7948,2792.2,2790.8,23.42315]
[1724452137863,7.16382,2791.9,2791.0,3.58284]
[1724452138158,6.58158,2792.1,2791.2,3.58259]
[1724452138367,3.58174,2792.0,2791.2,3.58259]
[1724452138563,3.58179,2791.9,2791.0,3.58284]
[1724452138766,3.58202,2791.8,2791.0,3.58284]
[1724452139061,3.58211,2791.7,2790.9,5.925335]
[1724452139263,3.58179,2791.9,2791.0,6.5177565]
[1724452139429,7.1637,2791.9,2791.0,6.5177565]
[1724452139633,3.58167,2792.0,2791.2,3.5826]
[1724452140396,3.5818,2791.9,2791.1,3.58281]
[1724452140517,7.7948,2792.6,2792.0,3.58164]
[1724452140852,3.58053,2792.9,2792.0,3.58164]
[1724452141056,3.57989,2793.4,2791.4,19.84]
[1724452141057,7.7948,2793.4,2792.1,22.84]
[1724452141364,7.7948,2793.4,2792.7,3.5807]
[1724452141519,3.57952,2793.7,2792.8,3.58062]
[1724452141722,7.7948,2793.8,2792.8,3.58062]
[1724452141723,7.7948,2793.8,2792.9,0.716132]
[1724452141917,3.57968,2793.6,2792.8,19.84]
[1724452142118,3.58008,2793.3,2792.3,19.84]
[1724452142357,3.58008,2793.3,2792.4,3.58105]
[1724452142602,3.58025,2793.1,2792.3,19.84]
[1724452142921,3.58025,2793.1,2792.4,3.58114]
[1724452143128,3.58,2793.3,2792.4,6.667254]
[1724452143129,3.58016,2793.2,2792.4,6.667254]
[1724452143315,3.58037,2793.0,2792.3,19.84]
[1724452143827,3.58051,2792.9,2792.3,19.84]
[1724452144065,3.58014,2793.2,2792.3,19.84]
[1724452144349,3.58025,2793.1,2792.3,19.84]
[1724452144524,3.58025,2793.1,2792.3,23.42125]
[1724452144724,3.0,2793.4,2792.5,11.0461]
[1724452144725,3.57998,2793.4,2792.5,11.0461]
[1724452145152,3.57998,2793.4,2792.5,7.4652]
[1724452145153,3.58025,2793.1,2792.5,7.4652]
[1724452145350,3.58025,2793.1,2792.4,3.444256]
[1724452145662,3.5802,2793.2,2792.4,3.444256]
[1724452146110,3.5802,2793.2,2792.4,26.865396]
[1724452146264,3.57978,2793.5,2792.5,3.0446646]
[1724452146579,3.57978,2793.5,2792.4,19.84]
[1724452146580,3.58009,2793.3,2792.4,19.84]
[1724452146873,3.58035,2793.1,2792.4,19.84]
[1724452147551,3.58059,2792.9,2792.4,19.84]
[1724452147746,3.58028,2793.1,2792.4,19.84]
[1724452147747,3.58029,2793.1,2792.4,19.84]
[1724452148489,3.58029,2793.1,2792.4,23.42113]
[1724452149144,3.58029,2793.1,2792.4,19.84]
[1724452149347,5.075803,2793.1,2792.4,19.84]
[1724452149826,3.58078,2792.7,2792.4,19.84]
[1724452150226,3.58115,2792.4,2791.8,19.84]
[1724452150453,3.58145,2792.2,2791.3,7.4652]
[1724452150736,3.58193,2791.8,2791.0,3.5829]
[1724452151038,3.58037843,2791.8,2791.0,5.046028]
[1724452151261,3.58037843,2791.8,2790.8,7.4652]
[1724452151262,3.58227,2791.6,2790.8,7.4652]
[1724452151489,3.58241,2791.5,2790.8,7.4652]
[1724452151773,3.58241,2791.5,2790.6,23.42334]
[1724452151956,3.58205,2791.7,2790.7,3.58332]
[1724452152125,3.5822,2791.6,2790.7,3.58332]
[1724452152327,3.5822,2791.6,2790.8,0.49566616]
[1724452152575,3.0,2792.0,2790.8,0.49566616]
[1724452152790,4.28009,2793.3,2790.9,8.02989608]
[1724452152791,7.8282,2792.6,2790.9,8.02989608]
[1724452153090,7.8282,2792.6,2791.2,3.58266]
[1724452153225,3.58158,2792.1,2791.2,3.58266]
[1724452153578,3.5818,2791.9,2791.3,0.358266]
[1724452153870,3.5818,2791.9,2791.0,3.58282]
[1724452154942,3.5818,2791.9,2791.1,3.58281]
[1724452155144,3.5818,2791.9,2791.0,3.58284]
[1724452156032,7.83972832,2792.4,2790.9,7.5825]
[1724452156033,3.58214,2791.7,2790.9,7.5825]
[1724452156431,3.58214,2791.7,2790.9,11.16556]
[1724452156669,3.58214,2791.7,2791.0,1.52443762]
[1724452157758,3.58218,2791.6,2791.0,1.52443762]
[1724452157971,3.58214,2791.7,2790.9,27.4225]
[1724452158173,3.58219,2791.6,2790.9,19.84]
[1724452158476,3.5823,2791.5,2790.9,19.84]
[1724452159439,3.58245,2791.4,2790.9,19.84]
[1724452159640,3.58258,2791.3,2790.9,19.84]
[1724452159864,3.58258,2791.3,2790.8,19.84]
[1724452160500,3.58258,2791.3,2790.5,20.56989837]
[1724452160796,3.58277,2791.2,2790.5,19.84]
[1724452161242,3.58282,2791.1,2790.5,19.84]
[1724452161984,3.5833,2790.8,2790.4,0.1316437]
[1724452162353,3.58335,2790.7,2790.4,0.1316437]
[1724452163082,8.0946,2790.5,2790.4,0.1316437]